bitfinex/quotes_BTCUSD_20250730
["timestamp","ask_amount","ask_price","bid_price","bid_amount"]
[1753890653282,6.74785723,118140.0,118130.0,0.003]
[1753890653526,6.61019245,118140.0,118130.0,0.003]
[1753890653735,5.35744902,118130.0,118120.0,0.00024251]
[1753890653988,5.558225,118130.0,118120.0,0.00024251]
[1753890654413,5.55041404,118130.0,118120.0,0.00024251]
[1753890656382,5.55041404,118130.0,118120.0,0.00124251]
[1753890656383,5.57541404,118130.0,118120.0,0.00124251]
[1753890656607,5.57841404,118130.0,118120.0,0.00124251]
[1753890656833,0.34,118100.0,118090.0,0.0044583]
[1753890657058,0.6190278,118100.0,118090.0,0.0044583]
[1753890657274,0.6733178,118100.0,118090.0,0.0044583]
[1753890657738,0.69076682,118100.0,118090.0,0.0044583]
[1753890658195,0.69125108,118100.0,118090.0,0.0044583]
[1753890658613,0.69225108,118100.0,118090.0,0.0064583]
[1753890659235,0.68638058,118100.0,118090.0,0.0064583]
[1753890659439,0.69221627,118100.0,118090.0,0.0064583]
[1753890660233,0.66973725,118100.0,118090.0,0.0085583]
[1753890660482,0.69225627,118100.0,118090.0,0.04259848]
[1753890660713,1.0450998,118100.0,118090.0,0.0064583]
[1753890660926,0.69225627,118100.0,118090.0,0.0064583]
[1753890661631,1.0450998,118100.0,118090.0,0.0064583]
[1753890661846,5.69225627,118100.0,118090.0,0.0064583]
[1753890662509,6.29819618,118100.0,118090.0,0.0044583]
[1753890662724,6.69851056,118100.0,118090.0,0.0044583]
[1753890662940,0.025,118050.0,118040.0,0.0001]
[1753890663162,0.81518448,118050.0,118040.0,0.0022]
[1753890663392,0.8638773,118050.0,118040.0,0.0022]
[1753890663848,0.87514545,118050.0,118040.0,0.0001]
[1753890664285,0.87367941,118050.0,118040.0,0.0001]
[1753890664498,0.67367941,118050.0,118040.0,0.0022]
[1753890664719,0.67155941,118050.0,118040.0,0.00534]
[1753890666258,0.67367941,118050.0,118040.0,0.0001]
[1753890666488,0.69112843,118050.0,118040.0,0.0001]
[1753890667447,0.71905684,118050.0,118040.0,0.0001]
[1753890667720,1.07190037,118050.0,118040.0,0.0001]
[1753890667957,0.91905684,118050.0,118040.0,0.0001]
[1753890669679,0.91610684,118050.0,118040.0,0.0022]
[1753890670388,0.34,118040.0,118020.0,0.32631746]
[1753890670655,0.4244773,118040.0,118030.0,0.0021]
[1753890670911,0.365,118040.0,118030.0,0.52439197]
[1753890671148,0.365,118040.0,118030.0,0.35494353]
[1753890671396,0.025,118040.0,118030.0,0.17154844]
[1753890671648,0.025,118040.0,118030.0,0.52439197]
[1753890671880,0.025,118040.0,118030.0,0.02712555]
[1753890672123,0.025,118040.0,118030.0,0.38051125]
[1753890672364,0.025,118040.0,118030.0,0.37996908]
[1753890672604,0.0789874,118040.0,118030.0,0.02712555]
[1753890673341,0.4209874,118040.0,118030.0,0.02712555]
[1753890673574,0.41834,118040.0,118030.0,0.02712555]
[1753890674321,0.42046,118040.0,118030.0,0.02712555]
[1753890674570,0.544925,118040.0,118030.0,0.02502555]
[1753890674817,0.025,118020.0,118010.0,0.1696753]
[1753890675048,0.54834,118040.0,118030.0,0.0021]
[1753890675318,0.54834,118040.0,118030.0,0.35494353]
[1753890675560,0.58561,118040.0,118030.0,0.0021]
[1753890675790,0.025,118030.0,118020.0,0.35284353]
[1753890675996,0.36764763,118030.0,118020.0,0.42045957]
[1753890676230,0.41634,118030.0,118020.0,0.42045957]
[1753890676726,0.41634,118030.0,118020.0,0.06761604]
[1753890677027,0.07634,118030.0,118020.0,0.35494353]
[1753890677758,0.07998763,118030.0,118020.0,0.35494353]
[1753890678006,0.08210763,118030.0,118020.0,0.0021]
[1753890678242,0.08505763,118030.0,118020.0,0.0021]
[1753890678468,0.08241,118030.0,118020.0,0.35494353]
[1753890678699,0.08210763,118030.0,118020.0,0.40740559]
[1753890678927,0.07946,118030.0,118020.0,0.05456206]
[1753890679402,0.07734,118030.0,118020.0,0.05456206]
[1753890679638,0.00048396,118050.0,118040.0,0.01694318]
[1753890679883,0.00048396,118050.0,118040.0,0.72275148]
[1753890680123,0.00048396,118050.0,118040.0,0.81118706]
[1753890681319,0.00148396,118050.0,118040.0,0.81118706]
[1753890681553,0.00632924,118050.0,118040.0,0.81118706]
[1753890682070,0.00832924,118050.0,118040.0,0.81118706]
[1753890682311,0.06786275,118070.0,118060.0,0.20541531]
[1753890682539,0.14420275,118090.0,118070.0,0.18631704]
[1753890682779,0.50764136,118090.0,118080.0,0.52432022]
[1753890683006,0.11630136,118090.0,118080.0,0.53278898]
[1753890683233,0.11630136,118090.0,118080.0,0.52696022]
[1753890683474,0.11630136,118090.0,118080.0,0.66815728]
[1753890683725,0.09130136,118090.0,118080.0,0.6935632]
[1753890683972,0.09130136,118090.0,118080.0,0.79974883]
[1753890683973,0.02343861,118090.0,118080.0,0.79974883]
[1753890684259,0.02343861,118090.0,118080.0,0.80439377]
[1753890684578,0.02344201,118090.0,118080.0,0.80439377]
[1753890684976,0.00781627,118090.0,118080.0,0.8345059]
[1753890685213,0.14420275,118120.0,118110.0,0.18626667]
[1753890685214,0.06786275,118120.0,118110.0,0.18626667]
[1753890685416,0.09132804,118120.0,118110.0,0.70058294]
[1753890685699,0.09132804,118120.0,118110.0,0.70904912]
[1753890685938,0.09132804,118120.0,118110.0,0.71168912]
[1753890686824,0.09632804,118120.0,118110.0,0.71268912]
[1753890687038,0.09632804,118120.0,118110.0,0.70422294]
[1753890687483,0.09632804,118120.0,118110.0,0.69575662]
[1753890687710,0.09632804,118120.0,118110.0,0.71004926]
[1753890688155,0.14329804,118120.0,118110.0,0.34873948]
[1753890688415,0.14329804,118120.0,118110.0,0.6931167]
[1753890688642,0.13829804,118120.0,118110.0,0.35620602]
[1753890688870,0.13829804,118120.0,118110.0,0.70904955]
[1753890689110,0.07043529,118120.0,118110.0,0.70904955]
[1753890689338,0.07043529,118120.0,118110.0,0.71751587]
[1753890689567,0.07143529,118120.0,118110.0,0.71951515]
[1753890689796,0.07143529,118120.0,118110.0,0.6941164]
[1753890690018,0.07143529,118120.0,118110.0,0.69411677]
[1753890690238,0.07143529,118120.0,118110.0,0.70258323]
[1753890690429,0.07143529,118120.0,118110.0,0.69411677]
[1753890690653,0.07143529,118120.0,118110.0,0.70258323]
[1753890690931,0.07143529,118120.0,118110.0,0.71104955]
[1753890691150,0.07143529,118120.0,118110.0,0.70258323]
[1753890691374,0.07143529,118120.0,118110.0,0.68565023]
[1753890691605,0.07143529,118120.0,118110.0,0.7025833]
[1753890691862,0.07143529,118120.0,118110.0,0.71951601]
[1753890692073,0.07143939,118120.0,118110.0,0.71951601]
[1753890692384,0.07143939,118120.0,118110.0,0.7025833]
[1753890692621,0.07143939,118120.0,118110.0,0.73591949]
[1753890692852,1.12382054,118120.0,118110.0,0.74438538]
[1753890693080,1.12382922,118120.0,118110.0,0.73591877]
[1753890693566,1.07685922,118120.0,118110.0,0.74438495]
[1753890693793,1.07685922,118120.0,118110.0,0.83150225]
[1753890694249,1.08272734,118120.0,118110.0,0.83150225]
[1753890696356,1.08272734,118120.0,118110.0,1.62710225]
[1753890696810,1.08272734,118120.0,118110.0,1.60803607]
[1753890697047,1.08271575,118120.0,118110.0,1.61386225]
[1753890697287,1.06707148,118120.0,118110.0,1.61386225]
[1753890697514,1.06707148,118120.0,118110.0,1.48350225]
[1753890697737,1.05924927,118120.0,118110.0,1.61646225]
[1753890697955,1.05924927,118120.0,118110.0,1.61642225]
[1753890698404,1.05338115,118120.0,118110.0,1.61642225]
[1753890698621,1.05338115,118120.0,118110.0,1.61378225]
[1753890699724,1.05338115,118120.0,118110.0,1.61642225]
[1753890699995,1.05338115,118120.0,118110.0,1.65652225]
[1753890701627,1.05238115,118120.0,118110.0,1.65452225]
[1753890702049,1.05338115,118120.0,118110.0,1.65752225]
[1753890703498,0.001,118120.0,118110.0,1.65752225]
[1753890703906,0.001,118120.0,118110.0,1.99752225]
[1753890704364,0.001,118120.0,118110.0,2.01497127]
[1753890704583,0.06247,118170.0,118160.0,0.16926201]
[1753890704862,0.0205,118170.0,118160.0,0.78056012]
[1753890705076,0.0205,118170.0,118160.0,0.78002379]
[1753890705302,0.06747,118170.0,118160.0,0.78002387]
[1753890705754,0.06747,118170.0,118160.0,0.78848646]
[1753890705969,0.06795426,118170.0,118160.0,0.78848646]
[1753890706192,0.06995426,118170.0,118160.0,0.78948646]
[1753890706417,0.06995426,118170.0,118160.0,0.78102394]
[1753890706944,0.08565426,118170.0,118160.0,0.76409825]
[1753890707166,0.08565426,118170.0,118160.0,0.78102416]
[1753890707367,0.08565426,118170.0,118160.0,0.77256135]
[1753890707791,0.08565426,118170.0,118160.0,0.7810243]
[1753890708072,0.08565426,118170.0,118160.0,0.78948711]
[1753890708300,0.08565426,118170.0,118160.0,0.77256142]
[1753890708498,0.08565426,118170.0,118160.0,0.37161606]
[1753890708714,0.08565426,118170.0,118160.0,0.14901253]
[1753890709126,0.11065426,118170.0,118160.0,0.01877253]
[1753890709332,0.11329875,118170.0,118160.0,0.14897253]
[1753890710448,0.19513156,118170.0,118160.0,0.01877253]
[1753890710666,0.76950427,118170.0,118160.0,0.001]
[1753890710889,0.025,118130.0,118110.0,1.19825953]
[1753890711112,0.0557,118130.0,118120.0,0.48358185]
[1753890711322,0.0555,118140.0,118120.0,0.79510791]
[1753890711548,0.0555,118140.0,118130.0,0.35284353]
[1753890711772,0.10247,118140.0,118130.0,0.35284353]
[1753890712214,0.10449,118140.0,118130.0,0.35298847]
[1753890712435,0.10747,118140.0,118130.0,0.35298847]
[1753890712662,0.10747,118140.0,118130.0,0.36658553]
[1753890712882,0.11147,118140.0,118130.0,0.36758553]
[1753890713109,0.11147,118140.0,118130.0,0.55382095]
[1753890713322,0.11147,118140.0,118130.0,0.36758553]
[1753890713778,0.11147,118140.0,118130.0,0.53689053]
[1753890713977,0.08647,118140.0,118130.0,0.53689053]
[1753890714239,0.08647,118140.0,118130.0,0.54535578]
[1753890714453,0.08647,118140.0,118130.0,0.53689053]
[1753890714688,0.08647,118140.0,118130.0,0.36758553]
[1753890714689,0.11147,118140.0,118130.0,0.36758553]
[1753890715132,0.11147,118140.0,118130.0,0.53689053]
[1753890715403,0.11147,118140.0,118130.0,0.014742]
[1753890715632,0.11147,118140.0,118130.0,0.53689053]
[1753890715859,0.08647,118140.0,118130.0,0.5453557]
[1753890716085,0.07097,118140.0,118130.0,0.5453557]
[1753890716332,0.09597,118140.0,118130.0,0.5473357]
[1753890716750,0.11137,118140.0,118130.0,0.53887053]
[1753890717189,0.11137,118140.0,118130.0,0.36758553]
[1753890717418,0.11137,118140.0,118130.0,0.53689053]
[1753890717662,0.05097,118140.0,118130.0,0.5642654]
[1753890717900,0.004,118140.0,118130.0,0.6487427]
[1753890718600,0.004,118140.0,118130.0,0.6513827]
[1753890718825,0.05283,118140.0,118130.0,0.6487427]
[1753890719277,0.05283,118140.0,118130.0,0.64027796]
[1753890719501,0.05484,118140.0,118130.0,0.64874299]
[1753890719965,0.05484,118140.0,118130.0,0.6656727]
[1753890720211,0.05484,118140.0,118130.0,0.66567227]
[1753890720461,0.11457,118140.0,118130.0,0.144942]
[1753890721144,0.11457,118140.0,118130.0,0.49778553]
[1753890721609,0.11457,118140.0,118130.0,0.014742]
[1753890721846,0.11457,118140.0,118130.0,0.00114494]
[1753890721847,0.55649632,118140.0,118130.0,0.00114494]
[1753890722090,0.0571,118120.0,118110.0,0.8]
[1753890722345,0.52998561,118120.0,118110.0,0.80014495]
[1753890722581,0.58131,118120.0,118110.0,0.80014495]
[1753890722824,1.08323632,118120.0,118110.0,0.80014495]
[1753890723150,0.45613947,118120.0,118110.0,0.80014495]
[1753890723237,0.58637947,118120.0,118110.0,1.15298848]
[1753890723465,0.58737947,118120.0,118110.0,1.15398848]
[1753890723731,0.11613947,118120.0,118110.0,1.15298848]
[1753890723986,0.24637947,118120.0,118110.0,1.15298848]
[1753890724250,0.24937947,118120.0,118110.0,1.15398848]
[1753890725206,0.24431,118120.0,118110.0,1.15398848]
[1753890725685,0.21935,118120.0,118110.0,1.15398848]
[1753890725921,0.21935,118120.0,118110.0,1.15596848]
[1753890725922,0.24122,118120.0,118110.0,1.15596848]
[1753890726396,0.24435,118120.0,118110.0,1.15596848]
[1753890726626,0.24435,118120.0,118110.0,1.15398848]
[1753890727150,0.003,118120.0,118110.0,1.34541515]
[1753890727377,0.05183,118120.0,118110.0,1.35070169]
[1753890728045,0.05183,118120.0,118110.0,1.35916801]
[1753890728265,0.05183,118120.0,118110.0,1.36763419]
[1753890728692,0.05183,118120.0,118110.0,1.3422353]
[1753890728915,0.05183,118120.0,118110.0,1.35070162]
[1753890729371,0.05183,118120.0,118110.0,0.99785823]
[1753890729602,0.05183,118120.0,118110.0,1.36763447]
[1753890729731,0.06754343,118120.0,118110.0,1.36763404]
[1753890730561,0.06754343,118120.0,118110.0,1.39260041]
[1753890730807,0.01871343,118120.0,118110.0,1.48025771]
[1753890731792,0.06754343,118120.0,118110.0,1.47707771]
[1753890732028,0.06754343,118120.0,118110.0,1.60723771]
[1753890732238,0.06454343,118120.0,118110.0,1.60623771]
[1753890732898,0.06554343,118120.0,118110.0,1.61123771]
[1753890733320,0.001,118120.0,118110.0,1.61441771]
[1753890734224,0.001,118120.0,118110.0,1.65001771]
[1753890734859,0.001,118120.0,118110.0,1.63941771]
[1753890737369,0.001,118120.0,118110.0,1.90151771]
[1753890737610,0.001,118120.0,118110.0,1.91211771]
[1753890739289,0.001,118120.0,118110.0,1.90151771]
[1753890740970,0.04983,118120.0,118110.0,1.74317771]
[1753890741211,0.04983,118120.0,118110.0,1.89813771]
[1753890741670,0.04983,118120.0,118110.0,1.87317771]
[1753890742874,0.04983,118120.0,118110.0,1.89817771]
[1753890743093,0.04983,118120.0,118110.0,1.63607771]
[1753890743660,0.04983,118120.0,118110.0,1.50607771]
[1753890743864,0.04983,118120.0,118110.0,1.61111771]
[1753890744090,0.04983,118120.0,118110.0,1.61107771]
[1753890744558,0.04983,118120.0,118110.0,1.63607771]
[1753890747022,0.001,118120.0,118110.0,1.63904771]
[1753890747244,0.001,118120.0,118110.0,1.64964771]
[1753890747693,0.001,118120.0,118110.0,1.63904771]
[1753890748360,0.001,118120.0,118110.0,1.64964771]
[1753890748595,0.001,118120.0,118110.0,1.99514771]
[1753890749043,0.001,118120.0,118110.0,2.25724771]
[1753890750376,0.08294,118120.0,118110.0,2.23813771]
[1753890750580,0.0861,118120.0,118110.0,1.89809771]
[1753890750705,0.0861,118120.0,118110.0,1.87111771]
[1753890751544,0.001,118120.0,118110.0,1.87308771]
[1753890751767,0.04798,118120.0,118110.0,1.87605771]
[1753890751978,0.001,118120.0,118110.0,1.87605771]
[1753890753706,0.001,118120.0,118110.0,1.87308771]
[1753890753707,0.04798,118120.0,118110.0,1.87308771]
[1753890753954,0.06458,118120.0,118110.0,1.87308771]
[1753890754838,0.06458,118120.0,118110.0,1.61098771]
[1753890756771,0.04798,118120.0,118110.0,1.61098771]
[1753890757020,0.07878,118140.0,118130.0,0.19469987]
[1753890757238,0.00316,118150.0,118140.0,0.1777547]
[1753890757239,0.07828,118150.0,118140.0,0.1777547]
[1753890757475,0.04698,118150.0,118140.0,0.75542949]
[1753890758868,0.0154,118160.0,118150.0,0.19466692]
[1753890759088,0.08084,118160.0,118150.0,0.76395775]
[1753890759958,0.08084,118160.0,118150.0,0.7641027]
[1753890760393,0.07868,118160.0,118150.0,1.11694623]
[1753890760617,0.04798,118160.0,118150.0,1.11794623]
[1753890761098,0.04798,118160.0,118150.0,1.12091623]
[1753890761328,0.04798,118160.0,118150.0,1.11794623]
[1753890762034,0.001,118160.0,118150.0,1.12091623]
[1753890762899,0.04798,118160.0,118150.0,1.12091623]
[1753890763321,0.04798,118160.0,118150.0,1.11794623]
[1753890763751,0.04798,118160.0,118150.0,1.38004623]
[1753890764260,0.08118,118160.0,118150.0,1.0272027]
[1753890764870,0.08118,118160.0,118150.0,1.38004623]
[1753890765113,0.08118,118160.0,118150.0,1.0272027]
[1753890765786,0.08118,118160.0,118150.0,1.38004623]
[1753890765959,0.08118,118160.0,118150.0,1.37992623]
[1753890766951,0.06458,118160.0,118150.0,1.37992623]
[1753890767168,0.04798,118160.0,118150.0,1.38289623]
[1753890767580,0.001,118160.0,118150.0,1.12079623]
[1753890768007,0.001,118160.0,118150.0,1.13139623]
[1753890768928,0.001,118160.0,118150.0,1.12079623]
[1753890769095,0.001,118160.0,118150.0,1.74789623]
[1753890770137,0.07868,118160.0,118150.0,1.61504623]
[1753890770349,0.04698,118160.0,118150.0,1.61404623]
[1753890770559,0.07818,118160.0,118150.0,1.72084623]
[1753890770777,0.07918,118160.0,118150.0,1.72084623]
[1753890771202,0.0845,118160.0,118150.0,1.0280027]
[1753890771450,0.0845,118160.0,118150.0,1.0260327]
[1753890771663,0.0845,118160.0,118150.0,1.01756953]
[1753890771866,0.0845,118160.0,118150.0,1.02603306]
[1753890772094,0.0845,118160.0,118150.0,1.04295989]
[1753890772511,0.0845,118160.0,118150.0,0.78085989]
[1753890772743,0.0845,118160.0,118150.0,0.78085939]
[1753890772955,0.0845,118160.0,118150.0,0.77239608]
[1753890773151,0.0845,118160.0,118150.0,0.7639327]
[1753890773374,0.0845,118160.0,118150.0,0.26436233]
[1753890773573,0.0845,118160.0,118150.0,0.38573859]
[1753890773785,0.0845,118160.0,118150.0,0.13198495]
[1753890774419,0.0845,118160.0,118150.0,0.30126129]
[1753890774623,0.0845,118160.0,118150.0,0.13198495]
[1753890774819,0.0845,118160.0,118150.0,0.30126129]
[1753890775070,0.0845,118160.0,118150.0,0.3097251]
[1753890775242,0.0845,118160.0,118150.0,0.3517021]
[1753890775457,0.0845,118160.0,118150.0,0.18242576]
[1753890775814,0.1095,118160.0,118150.0,0.13198495]
[1753890777017,0.1085,118160.0,118150.0,0.12998495]
[1753890777220,0.1085,118160.0,118150.0,0.00014495]
[1753890777424,0.1095,118160.0,118150.0,0.00114495]
[1753890777678,0.45214471,118160.0,118150.0,0.00114495]
[1753890778006,0.4495,118160.0,118150.0,0.00114495]
[1753890779552,0.4485,118160.0,118150.0,0.00014495]
[1753890779994,0.4505,118160.0,118150.0,0.00114495]
[1753890780218,0.4505,118160.0,118150.0,0.00014495]
[1753890780407,0.4535,118160.0,118150.0,0.00114495]
[1753890786714,0.5379773,118160.0,118150.0,0.00114495]
[1753890787322,0.5067773,118160.0,118130.0,0.65907849]
[1753890787550,0.031,118140.0,118130.0,0.65922347]
[1753890787793,0.07818,118140.0,118130.0,0.52431342]
[1753890788028,0.07818,118140.0,118130.0,0.54124362]
[1753890788320,0.07818,118140.0,118130.0,0.53277859]
[1753890788542,0.08018,118140.0,118130.0,0.53277868]
[1753890788786,0.08018,118140.0,118130.0,0.54124378]
[1753890789014,0.07818,118140.0,118130.0,0.54970874]
[1753890789241,0.07818,118140.0,118130.0,0.55817356]
[1753890789448,0.07818,118140.0,118130.0,0.54970874]
[1753890789667,0.07818,118140.0,118130.0,0.53277868]
[1753890789891,0.07818,118140.0,118130.0,0.54124364]
[1753890790077,0.07818,118140.0,118130.0,0.5497086]
[1753890790278,0.07818,118140.0,118130.0,0.55817349]
[1753890790488,0.07818,118140.0,118130.0,0.5497086]
[1753890790697,0.07818,118140.0,118130.0,0.53277868]
[1753890790931,0.08018,118140.0,118130.0,0.18840025]
[1753890791141,0.031,118140.0,118130.0,0.56980851]
[1753890791371,0.0318,118150.0,118140.0,0.18620646]
[1753890791630,0.07898,118150.0,118140.0,0.67937409]
[1753890791834,0.07898,118150.0,118140.0,0.68783812]
[1753890792449,0.07898,118150.0,118140.0,0.67937416]
[1753890792666,0.08198,118150.0,118140.0,0.68037416]
[1753890792886,0.08198,118150.0,118140.0,0.68883826]
[1753890793107,0.08198,118150.0,118140.0,0.69730229]
[1753890793324,0.08198,118150.0,118140.0,0.68883826]
[1753890793961,0.08198,118150.0,118140.0,0.68037416]
[1753890794182,0.08198,118150.0,118140.0,0.69730229]
[1753890794612,0.08198,118150.0,118140.0,0.66344575]
[1753890794847,0.08198,118150.0,118140.0,0.68037438]
[1753890795044,0.08198,118150.0,118140.0,0.68037445]
[1753890795312,0.08198,118150.0,118140.0,0.68883869]
[1753890795762,0.08198,118150.0,118140.0,0.69730272]
[1753890796393,0.08198,118150.0,118140.0,0.68883869]
[1753890796622,0.08198,118150.0,118140.0,0.69730286]
[1753890796844,0.08198,118150.0,118140.0,0.68883869]
[1753890797056,0.08198,118150.0,118140.0,0.66344575]
[1753890797268,0.08198,118150.0,118140.0,0.66344582]
[1753890797488,0.08398,118150.0,118140.0,0.65498129]
[1753890797713,0.08398,118150.0,118140.0,0.66344582]
[1753890798387,0.08398,118150.0,118140.0,0.67191021]
[1753890798595,0.08721,118150.0,118140.0,0.30001067]
[1753890798840,0.08721,118150.0,118140.0,0.13072]
[1753890799078,0.08721,118150.0,118140.0,0.66131859]
[1753890799297,0.08398,118150.0,118140.0,0.66333859]
[1753890799486,0.08398,118150.0,118140.0,0.67180283]
[1753890799487,0.08198,118150.0,118140.0,0.67180283]
[1753890799956,0.08198,118150.0,118140.0,0.68026686]
[1753890800165,0.08198,118150.0,118140.0,0.6718029]
[1753890800591,0.08198,118150.0,118140.0,0.68873103]
[1753890800790,0.08198,118150.0,118140.0,0.66333859]
[1753890801082,0.08198,118150.0,118140.0,0.6718029]
[1753890801303,0.08198,118150.0,118140.0,0.68026714]
[1753890801739,0.08198,118150.0,118140.0,0.66333859]
[1753890801953,0.08398,118150.0,118140.0,0.66333866]
[1753890802165,0.08398,118150.0,118140.0,0.66333873]
[1753890802399,0.08721,118150.0,118140.0,0.13072]
[1753890802641,0.08721,118150.0,118140.0,0.17003081]
[1753890803513,0.08652283,118150.0,118140.0,0.16995081]
[1753890803754,0.08652283,118150.0,118140.0,0.17048805]
[1753890803981,0.11152283,118150.0,118140.0,0.04031081]
[1753890804204,0.45152283,118150.0,118140.0,0.04031081]
[1753890804434,0.45152283,118150.0,118140.0,0.001]
[1753890809158,0.58116283,118150.0,118140.0,0.35586353]
[1753890809381,0.10829283,118150.0,118140.0,0.34086353]
[1753890809644,0.21093283,118150.0,118140.0,0.53261866]
[1753890809879,0.0184,118150.0,118140.0,0.55978132]
[1753890810104,0.0184,118150.0,118140.0,0.55978139]
[1753890811010,0.003,118150.0,118140.0,0.56824542]
[1753890811225,0.003,118150.0,118140.0,1.00556625]
[1753890811455,0.003,118150.0,118140.0,1.02236625]
[1753890811670,0.003,118150.0,118140.0,0.66952272]
[1753890812099,0.0315,118170.0,118160.0,0.18618784]
[1753890812322,0.07678,118170.0,118160.0,0.30104201]
[1753890812549,0.0789,118170.0,118160.0,0.48462353]
[1753890812784,0.0506,118170.0,118150.0,0.53057087]
[1753890813023,0.07828,118160.0,118150.0,0.76173544]
[1753890813239,0.0836,118160.0,118150.0,0.12976]
[1753890813488,0.033,118150.0,118140.0,0.53906304]
[1753890813714,0.07828,118150.0,118140.0,0.2162973]
[1753890813927,0.0836,118150.0,118140.0,0.30111067]
[1753890814163,0.0836,118150.0,118140.0,0.13182]
[1753890814376,0.0836,118150.0,118140.0,0.30111067]
[1753890815088,0.0836,118150.0,118140.0,0.3095752]
[1753890815320,0.0836,118150.0,118140.0,0.66241873]
[1753890815531,0.0836,118150.0,118140.0,0.3095752]
[1753890815753,0.0836,118150.0,118140.0,0.30111067]
[1753890815996,0.0836,118150.0,118140.0,0.1298]
[1753890816412,0.0866,118150.0,118140.0,0.1308]
[1753890817165,0.0866,118150.0,118140.0,0.001]
[1753890817376,0.1116,118150.0,118140.0,0.001]
[1753890817792,0.11424494,118150.0,118140.0,0.001]
[1753890818049,0.24408494,118150.0,118140.0,0.001]
[1753890818208,0.24144,118150.0,118140.0,0.001]
[1753890819998,0.08128,118150.0,118140.0,0.66395583]
[1753890820212,0.08128,118150.0,118140.0,0.6718829]
[1753890820628,0.08128,118150.0,118140.0,0.66341859]
[1753890820858,0.08128,118150.0,118140.0,0.67188283]
[1753890821589,0.08128,118150.0,118140.0,0.68034714]
[1753890821764,0.06468,118150.0,118140.0,0.68881117]
[1753890822017,0.003,118150.0,118140.0,0.77505847]
[1753890823300,0.003,118150.0,118140.0,0.76659444]
[1753890823508,0.07968,118150.0,118140.0,0.39505236]
[1753890823628,0.07968,118150.0,118140.0,0.7563602]
[1753890823837,0.07968,118150.0,118140.0,0.77328847]
[1753890824050,0.07968,118150.0,118140.0,0.76482444]
[1753890824460,0.07968,118150.0,118140.0,0.77328861]
[1753890824666,0.07968,118150.0,118140.0,0.76482444]
[1753890824874,0.07968,118150.0,118140.0,0.77328861]
[1753890825086,0.07968,118150.0,118140.0,0.78175264]
[1753890825495,0.06388,118150.0,118140.0,0.78175264]
[1753890825893,0.003,118150.0,118140.0,0.78352264]
[1753890828570,0.003,118150.0,118140.0,0.79482264]
[1753890831094,0.003,118150.0,118140.0,0.78352264]
[1753890835372,0.003,118150.0,118140.0,0.43067911]
[1753890835577,0.003,118150.0,118140.0,0.78352264]
[1753890837498,0.003,118150.0,118140.0,0.80032264]
[1753890838379,0.003,118150.0,118140.0,1.49316617]
[1753890838568,0.003,118150.0,118140.0,1.51816617]
[1753890839210,0.003,118150.0,118140.0,1.53561519]
[1753890840148,0.04323,118170.0,118160.0,0.19465043]
[1753890840356,0.04323,118170.0,118160.0,0.76169126]
[1753890840573,0.04323,118170.0,118160.0,0.76364126]
[1753890841236,0.04323,118170.0,118160.0,0.76996909]
[1753890841727,0.87563,118180.0,118170.0,0.19463397]
[1753890841941,0.84423,118180.0,118170.0,0.6339048]
[1753890842835,0.801,118180.0,118170.0,0.6339048]
[1753890843050,0.85991474,118180.0,118170.0,0.6339048]
[1753890843269,0.85991474,118180.0,118170.0,0.6349048]
[1753890843270,0.84871474,118180.0,118170.0,0.6349048]
[1753890843945,0.80548474,118180.0,118170.0,0.6349048]
[1753890844173,0.84871474,118180.0,118170.0,0.6349048]
[1753890844570,0.84871474,118180.0,118170.0,0.66080043]
[1753890844806,0.06521474,118180.0,118170.0,0.66080043]
[1753890846435,0.06521474,118180.0,118170.0,0.92290043]
[1753890847252,0.08131474,118180.0,118170.0,0.92290043]
[1753890847456,0.08662474,118180.0,118170.0,0.90402646]
[1753890847696,0.08662474,118180.0,118170.0,0.68078293]
[1753890847912,0.08662474,118180.0,118170.0,0.680783]
[1753890848123,0.08662474,118180.0,118170.0,0.68924531]
[1753890848338,0.08662474,118180.0,118170.0,0.69770747]
[1753890848773,0.08662474,118180.0,118170.0,0.70616956]
[1753890848995,0.08662474,118180.0,118170.0,1.050551]
[1753890849206,0.08662474,118180.0,118170.0,1.05901309]
[1753890849420,0.08662474,118180.0,118170.0,0.680783]
[1753890849639,0.08662474,118180.0,118170.0,0.68924531]
[1753890849855,0.08662474,118180.0,118170.0,0.680783]
[1753890850261,0.08662474,118180.0,118170.0,0.68924524]
[1753890850697,0.08662474,118180.0,118170.0,0.70616949]
[1753890850897,0.08662474,118180.0,118170.0,1.0674749]
[1753890851751,0.08662474,118180.0,118170.0,1.0694249]
[1753890852263,0.08131474,118180.0,118170.0,1.0694249]
[1753890852483,0.08131474,118180.0,118170.0,0.8073249]
[1753890852890,0.06521474,118180.0,118170.0,0.8073249]
[1753890853109,0.04871474,118180.0,118170.0,0.8073249]
[1753890853526,0.00548474,118180.0,118170.0,0.8073249]
[1753890854991,0.00548474,118180.0,118170.0,1.1908949]
[1753890855287,0.00548474,118180.0,118170.0,1.4509949]
[1753890856065,0.00148474,118180.0,118170.0,1.4499949]
[1753890856498,0.00248474,118180.0,118170.0,1.4529949]
[1753890857388,0.00248474,118180.0,118170.0,1.4361949]
[1753890859638,0.00248474,118180.0,118170.0,1.4616229]
[1753890860895,0.00248474,118180.0,118170.0,1.4598529]
[1753890861312,0.08372474,118180.0,118170.0,1.05650137]
[1753890861517,0.08372474,118180.0,118170.0,1.4093449]
[1753890862339,0.08372474,118180.0,118170.0,1.4343449]
[1753890863406,0.07841474,118180.0,118170.0,1.4343449]
[1753890865182,0.07841474,118180.0,118170.0,1.4093449]
[1753890865415,0.07841474,118180.0,118170.0,1.4343449]
[1753890865669,0.00248474,118180.0,118170.0,1.4343449]
[1753890865912,0.00248474,118180.0,118170.0,1.4529149]
[1753890866121,1e-08,118180.0,118170.0,1.82320745]
[1753890866563,1e-08,118180.0,118170.0,1.47036392]
[1753890870232,1e-08,118180.0,118170.0,1.46486392]
[1753890870464,0.04559001,118180.0,118170.0,1.4343449]
[1753890870707,0.04559001,118180.0,118170.0,1.0673949]
[1753890870708,0.08311001,118180.0,118170.0,1.0673949]
[1753890871176,0.08311001,118180.0,118170.0,1.4073949]
[1753890872524,0.08311001,118180.0,118170.0,0.57656949]
[1753890872740,0.08311001,118180.0,118170.0,0.71455137]
[1753890872994,0.08311001,118180.0,118170.0,1.0673949]
[1753890875922,0.08311001,118180.0,118170.0,0.79683302]
[1753890876142,0.08311001,118180.0,118170.0,0.41860286]
[1753890876822,0.08311001,118180.0,118170.0,0.42706502]